[Event "Titled Tuesday Blitz April 11 Late 2023"]
[White "Przybylski, Wojciech"]
[Black "Urazayev, Arystanbek"]
[WhiteFideId "1117599"]
[BlackFideId "13709810"]
[WhiteElo "2222"]
[BlackElo "2449"]
[Result "1-0"]
[Round "07"]
[TimeControl "180+2"]
[Date "2023.04.11"]
[WhiteClock "0:00:05"]
[BlackClock "0:00:03"]

1. e4 {[%clk 0:03:00]}  c5 {[%clk 0:03:00]} 2. Nf3 {[%clk 0:02:58]}  d6 {[%clk 0:03:01]} 3. d4 {[%clk 0:02:56]}  cxd4 {[%clk 0:03:01]} 4. Nxd4 {[%clk 0:02:57]}  Nf6 {[%clk 0:03:02]} 5. Nc3 {[%clk 0:02:57]}  a6 {[%clk 0:03:03]} 6. Be3 {[%clk 0:02:56]}  e5 {[%clk 0:03:03]} 7. Nb3 {[%clk 0:02:56]}  Be6 {[%clk 0:03:02]} 8. f3 {[%clk 0:02:55]}  h5 {[%clk 0:03:01]} 9. Qd2 {[%clk 0:02:55]}  Be7 {[%clk 0:03:01]} 10. Nd5 {[%clk 0:02:54]}  Nxd5 {[%clk 0:03:00]} 11. exd5 {[%clk 0:02:55]}  Bf5 {[%clk 0:03:00]} 12. O-O-O {[%clk 0:02:52]}  Nd7 {[%clk 0:02:54]} 13. Bd3 {[%clk 0:02:50]}  Bxd3 {[%clk 0:02:53]} 14. Qxd3 {[%clk 0:02:50]}  Rc8 {[%clk 0:02:52]} 15. Kb1 {[%clk 0:02:49]}  Qc7 {[%clk 0:02:46]} 16. f4 {[%clk 0:02:44]}  O-O {[%clk 0:02:27]} 17. h3 {[%clk 0:02:34]}  Bf6 {[%clk 0:02:23]} 18. g4 {[%clk 0:02:29]}  exf4 {[%clk 0:02:04]} 19. Bxf4 {[%clk 0:02:26]}  Be5 {[%clk 0:02:04]} 20. Bc1 {[%clk 0:02:16]}  h4 {[%clk 0:02:02]} 21. Rhf1 {[%clk 0:02:03]}  Nc5 {[%clk 0:02:02]} 22. Nxc5 {[%clk 0:01:56]}  Qxc5 {[%clk 0:02:03]} 23. c3 {[%clk 0:01:17]}  Qc4 {[%clk 0:01:45]} 24. Bg5 {[%clk 0:01:12]}  Bg3 {[%clk 0:01:40]} 25. Qf5 {[%clk 0:00:58]}  g6 {[%clk 0:01:30]} 26. Qf3 {[%clk 0:00:47]}  Rce8 {[%clk 0:01:27]} 27. Bh6 {[%clk 0:00:45]}  Qe4+ {[%clk 0:01:04]} 28. Qxe4 {[%clk 0:00:44]}  Rxe4 {[%clk 0:01:05]} 29. Bxf8 {[%clk 0:00:43]}  Kxf8 {[%clk 0:01:06]} 30. Kc2 {[%clk 0:00:42]}  Re2+ {[%clk 0:00:56]} 31. Rd2 {[%clk 0:00:41]}  Re3 {[%clk 0:00:56]} 32. Rd3 {[%clk 0:00:38]}  Re2+ {[%clk 0:00:56]} 33. Rd2 {[%clk 0:00:39]}  Re3 {[%clk 0:00:57]} 34. a4 {[%clk 0:00:33]}  a5 {[%clk 0:00:48]} 35. Rd3 {[%clk 0:00:31]}  Re2+ {[%clk 0:00:48]} 36. Rd2 {[%clk 0:00:32]}  Re3 {[%clk 0:00:48]} 37. Rb1 {[%clk 0:00:20]}  f5 {[%clk 0:00:42]} 38. gxf5 {[%clk 0:00:19]}  gxf5 {[%clk 0:00:43]} 39. Rd3 {[%clk 0:00:18]}  Re2+ {[%clk 0:00:43]} 40. Rd2 {[%clk 0:00:18]}  Re3 {[%clk 0:00:43]} 41. Rf1 {[%clk 0:00:14]}  f4 {[%clk 0:00:41]} 42. Rd3 {[%clk 0:00:15]}  Re2+ {[%clk 0:00:41]} 43. Rd2 {[%clk 0:00:15]}  Re4 {[%clk 0:00:39]} 44. b3 {[%clk 0:00:12]}  Ke7 {[%clk 0:00:38]} 45. Kd3 {[%clk 0:00:09]}  Re3+ {[%clk 0:00:37]} 46. Kd4 {[%clk 0:00:08]}  Kd7 {[%clk 0:00:32]} 47. b4 {[%clk 0:00:07]}  axb4 {[%clk 0:00:29]} 48. cxb4 {[%clk 0:00:08]}  Rb3 {[%clk 0:00:28]} 49. Kc4 {[%clk 0:00:07]}  Ra3 {[%clk 0:00:25]} 50. a5 {[%clk 0:00:07]}  Kc7 {[%clk 0:00:18]} 51. Kb5 {[%clk 0:00:07]}  Rc3 {[%clk 0:00:19]} 52. Rb2 {[%clk 0:00:04]}  f3 {[%clk 0:00:18]} 53. Rd2 {[%clk 0:00:04]}  f2 {[%clk 0:00:16]} 54. Rd4 {[%clk 0:00:03]}  Re3 {[%clk 0:00:16]} 55. Rc4+ {[%clk 0:00:04]}  Kd7 {[%clk 0:00:16]} 56. Kb6 {[%clk 0:00:04]}  Re1 {[%clk 0:00:17]} 57. Rc1 {[%clk 0:00:04]}  Re4 {[%clk 0:00:16]} 58. b5 {[%clk 0:00:04]}  Rb4 {[%clk 0:00:16]} 59. Rb1 {[%clk 0:00:03]}  Ra4 {[%clk 0:00:16]} 60. a6 {[%clk 0:00:03]}  bxa6 {[%clk 0:00:16]} 61. bxa6 {[%clk 0:00:04]}  Bf4 {[%clk 0:00:16]} 62. Kb7 {[%clk 0:00:03]}  Be3 {[%clk 0:00:17]} 63. Rb3 {[%clk 0:00:04]}  Bc5 {[%clk 0:00:17]} 64. Rb5 {[%clk 0:00:04]}  Bd4 {[%clk 0:00:16]} 65. Rb3 {[%clk 0:00:04]}  Bc5 {[%clk 0:00:15]} 66. Rb2 {[%clk 0:00:04]}  Rf4 {[%clk 0:00:13]} 67. a7 {[%clk 0:00:03]}  Bd4 {[%clk 0:00:08]} 68. a8=Q {[%clk 0:00:02]}  Bxb2 {[%clk 0:00:08]} 69. Qc8+ {[%clk 0:00:02]}  Ke7 {[%clk 0:00:08]} 70. Qe6+ {[%clk 0:00:02]}  Kd8 {[%clk 0:00:03]} 71. Qxd6+ {[%clk 0:00:03]}  Ke8 {[%clk 0:00:03]} 72. Qxf4 {[%clk 0:00:04]}  Be5 {[%clk 0:00:02]} 73. Qe4 {[%clk 0:00:05]}  Kd7 {[%clk 0:00:02]} 74. Qxe5 {[%clk 0:00:05]}  Kd8 {[%clk 0:00:03]} 75. Qd6+ {[%clk 0:00:05]} 1-0


[Site "https://www.chess.com"]

[Event "Titled Tuesday Blitz April 11 Late 2023"]
[White "Adewumi, Tanitoluwa"]
[Black "Sai Han Thiha"]
[WhiteFideId "30966396"]
[BlackFideId "13012290"]
[WhiteElo "2283"]
[BlackElo "1954"]
[Result "0-1"]
[Round "07"]
[TimeControl "180+2"]
[Date "2023.04.11"]
[WhiteClock "0:00:04"]
[BlackClock "0:00:12"]

1. e4 {[%clk 0:01:58]}  c6 {[%clk 0:02:59]} 2. d4 {[%clk 0:01:57]}  d5 {[%clk 0:03:00]} 3. exd5 {[%clk 0:01:53]}  cxd5 {[%clk 0:03:00]} 4. Bd3 {[%clk 0:01:49]}  Nc6 {[%clk 0:03:00]} 5. c3 {[%clk 0:01:39]}  Nf6 {[%clk 0:03:01]} 6. h3 {[%clk 0:01:35]}  g6 {[%clk 0:03:00]} 7. Nf3 {[%clk 0:01:30]}  Bf5 {[%clk 0:03:01]} 8. O-O {[%clk 0:01:23]}  Bxd3 {[%clk 0:02:59]} 9. Qxd3 {[%clk 0:01:23]}  Qc7 {[%clk 0:02:59]} 10. Re1 {[%clk 0:01:20]}  Bg7 {[%clk 0:02:59]} 11. Bg5 {[%clk 0:01:17]}  O-O {[%clk 0:02:58]} 12. Nbd2 {[%clk 0:01:11]}  e6 {[%clk 0:02:58]} 13. Rac1 {[%clk 0:00:59]}  h6 {[%clk 0:02:10]} 14. Bh4 {[%clk 0:00:47]}  Rfd8 {[%clk 0:02:09]} 15. Bg3 {[%clk 0:00:32]}  Qb6 {[%clk 0:02:06]} 16. b4 {[%clk 0:00:31]}  a5 {[%clk 0:02:05]} 17. b5 {[%clk 0:00:31]}  Ne7 {[%clk 0:02:01]} 18. a4 {[%clk 0:00:30]}  Nf5 {[%clk 0:01:54]} 19. Bh2 {[%clk 0:00:26]}  Rac8 {[%clk 0:01:52]} 20. c4 {[%clk 0:00:24]}  dxc4 {[%clk 0:01:43]} 21. Nxc4 {[%clk 0:00:22]}  Qa7 {[%clk 0:01:42]} 22. Qc3 {[%clk 0:00:17]}  b6 {[%clk 0:01:22]} 23. Qb2 {[%clk 0:00:10]}  Qb7 {[%clk 0:01:12]} 24. Nce5 {[%clk 0:00:06]}  Rxc1 {[%clk 0:00:51]} 25. Rxc1 {[%clk 0:00:07]}  Nd5 {[%clk 0:00:51]} 26. Nc6 {[%clk 0:00:07]}  Re8 {[%clk 0:00:52]} 27. Be5 {[%clk 0:00:06]}  f6 {[%clk 0:00:47]} 28. Bh2 {[%clk 0:00:05]}  Bf8 {[%clk 0:00:43]} 29. Nd2 {[%clk 0:00:04]}  Nd6 {[%clk 0:00:37]} 30. Qb3 {[%clk 0:00:02]}  Qf7 {[%clk 0:00:35]} 31. Re1 {[%clk 0:00:02]}  Nf5 {[%clk 0:00:31]} 32. Ne4 {[%clk 0:00:02]}  g5 {[%clk 0:00:28]} 33. Kh1 {[%clk 0:00:02]}  Kg7 {[%clk 0:00:27]} 34. Kg1 {[%clk 0:00:02]}  Qd7 {[%clk 0:00:28]} 35. Qf3 {[%clk 0:00:02]}  Nde7 {[%clk 0:00:28]} 36. Nxf6 {[%clk 0:00:02]}  Kxf6 {[%clk 0:00:26]} 37. g4 {[%clk 0:00:02]}  Qd5 {[%clk 0:00:23]} 38. Qxd5 {[%clk 0:00:02]}  Nxd5 {[%clk 0:00:24]} 39. gxf5 {[%clk 0:00:02]}  Kxf5 {[%clk 0:00:25]} 40. Re5+ {[%clk 0:00:02]}  Kf6 {[%clk 0:00:25]} 41. Re4 {[%clk 0:00:03]}  Nc3 {[%clk 0:00:23]} 42. Re3 {[%clk 0:00:03]}  Nxa4 {[%clk 0:00:17]} 43. Rf3+ {[%clk 0:00:03]}  Kg7 {[%clk 0:00:17]} 44. Be5+ {[%clk 0:00:03]}  Kg6 {[%clk 0:00:16]} 45. Bc7 {[%clk 0:00:03]}  Bb4 {[%clk 0:00:12]} 46. Bxb6 {[%clk 0:00:03]}  Nxb6 {[%clk 0:00:12]} 47. Ne5+ {[%clk 0:00:03]}  Kh5 {[%clk 0:00:12]} 48. Kg2 {[%clk 0:00:04]}  Nd5 {[%clk 0:00:11]} 49. Rf7 {[%clk 0:00:04]}  Nf4+ {[%clk 0:00:11]} 50. Kg3 {[%clk 0:00:03]}  Bc3 {[%clk 0:00:11]} 51. Rg7 {[%clk 0:00:04]}  Bxd4 {[%clk 0:00:12]} 0-1


[Site "https://www.chess.com"]

[Event "Titled Tuesday Blitz April 11 Late 2023"]
[White "Vovk, Orest"]
[Black "Manzone, Alessandro"]
[WhiteFideId "14113490"]
[BlackFideId "112488"]
[WhiteElo "2215"]
[BlackElo "2255"]
[Result "0-1"]
[Round "07"]
[TimeControl "180+2"]
[Date "2023.04.11"]
[WhiteClock "0:00:03"]
[BlackClock "0:00:10"]

1. h4 {[%clk 0:02:55]}  e5 {[%clk 0:03:00]} 2. h5 {[%clk 0:02:50]}  h6 {[%clk 0:03:00]} 3. d4 {[%clk 0:02:49]}  exd4 {[%clk 0:02:59]} 4. Qxd4 {[%clk 0:02:49]}  Nf6 {[%clk 0:02:59]} 5. g4 {[%clk 0:02:48]}  Nc6 {[%clk 0:02:59]} 6. Qa4 {[%clk 0:02:47]}  d5 {[%clk 0:02:45]} 7. g5 {[%clk 0:02:47]}  Ne4 {[%clk 0:02:44]} 8. gxh6 {[%clk 0:02:40]}  gxh6 {[%clk 0:02:44]} 9. Nd2 {[%clk 0:02:37]}  Nc5 {[%clk 0:02:43]} 10. Qh4 {[%clk 0:02:23]}  Be7 {[%clk 0:02:42]} 11. Qg3 {[%clk 0:02:22]}  Bd6 {[%clk 0:02:35]} 12. Qe3+ {[%clk 0:02:18]}  Be6 {[%clk 0:02:33]} 13. Ngf3 {[%clk 0:02:10]}  Qf6 {[%clk 0:02:26]} 14. Bh3 {[%clk 0:01:47]}  O-O-O {[%clk 0:01:57]} 15. Bxe6+ {[%clk 0:01:46]}  fxe6 {[%clk 0:01:58]} 16. Nb3 {[%clk 0:01:27]}  Ne4 {[%clk 0:01:45]} 17. c3 {[%clk 0:01:12]}  Kb8 {[%clk 0:01:25]} 18. Nfd4 {[%clk 0:01:08]}  Nxd4 {[%clk 0:01:19]} 19. Nxd4 {[%clk 0:01:02]}  Bc5 {[%clk 0:01:16]} 20. Qf4 {[%clk 0:00:30]}  Bxd4 {[%clk 0:01:08]} 21. cxd4 {[%clk 0:00:29]}  Qxd4 {[%clk 0:01:07]} 22. Be3 {[%clk 0:00:29]}  Qb4+ {[%clk 0:01:03]} 23. Kf1 {[%clk 0:00:29]}  Rhf8 {[%clk 0:00:53]} 24. Qe5 {[%clk 0:00:23]}  Rde8 {[%clk 0:00:37]} 25. Rc1 {[%clk 0:00:11]}  Qe7 {[%clk 0:00:26]} 26. Qd4 {[%clk 0:00:06]}  b6 {[%clk 0:00:24]} 27. Ke1 {[%clk 0:00:04]}  Rf5 {[%clk 0:00:20]} 28. Qa4 {[%clk 0:00:03]}  Ref8 {[%clk 0:00:18]} 29. f3 {[%clk 0:00:03]}  Nd6 {[%clk 0:00:17]} 30. Bf2 {[%clk 0:00:02]}  e5 {[%clk 0:00:16]} 31. b3 {[%clk 0:00:03]}  e4 {[%clk 0:00:16]} 32. Bg3 {[%clk 0:00:02]}  exf3 {[%clk 0:00:15]} 33. Rh2 {[%clk 0:00:03]}  Rg8 {[%clk 0:00:13]} 34. Bxd6 {[%clk 0:00:02]}  Qxd6 {[%clk 0:00:13]} 35. Rf2 {[%clk 0:00:02]}  Rg1+ {[%clk 0:00:12]} 36. Kd2 {[%clk 0:00:03]}  Rxc1 {[%clk 0:00:10]} 37. Kxc1 {[%clk 0:00:03]}  Qc5+ {[%clk 0:00:10]} 38. Kd1 {[%clk 0:00:02]}  Qxf2 {[%clk 0:00:10]} 39. Qe8+ {[%clk 0:00:02]}  Kb7 {[%clk 0:00:10]} 40. Qe3 {[%clk 0:00:03]}  Qxe3 {[%clk 0:00:10]} 0-1


[Site "https://www.chess.com"]

[Event "Titled Tuesday Blitz April 11 Late 2023"]
[White "Ladan, Nicholas"]
[Black "Leiva, Gianmarco"]
[WhiteFideId "30918855"]
[BlackFideId "3804399"]
[WhiteElo "2167"]
[BlackElo "2345"]
[Result "0-1"]
[Round "07"]
[TimeControl "180+2"]
[Date "2023.04.11"]
[WhiteClock "0:00:21"]
[BlackClock "0:01:05"]

1. d4 {[%clk 0:03:00]}  Nf6 {[%clk 0:02:51]} 2. Nf3 {[%clk 0:03:00]}  e6 {[%clk 0:02:49]} 3. g3 {[%clk 0:02:59]}  d5 {[%clk 0:02:37]} 4. Bg2 {[%clk 0:02:59]}  Be7 {[%clk 0:02:37]} 5. O-O {[%clk 0:03:00]}  O-O {[%clk 0:02:37]} 6. c4 {[%clk 0:03:00]}  c6 {[%clk 0:02:34]} 7. Qc2 {[%clk 0:02:59]}  Nbd7 {[%clk 0:02:34]} 8. Nbd2 {[%clk 0:02:58]}  b6 {[%clk 0:02:33]} 9. e4 {[%clk 0:02:59]}  dxc4 {[%clk 0:02:33]} 10. Nxc4 {[%clk 0:02:55]}  Bb7 {[%clk 0:02:29]} 11. Bf4 {[%clk 0:02:44]}  c5 {[%clk 0:02:28]} 12. Rfe1 {[%clk 0:02:28]}  cxd4 {[%clk 0:02:18]} 13. Nxd4 {[%clk 0:02:25]}  Rc8 {[%clk 0:02:09]} 14. e5 {[%clk 0:01:56]}  Bxg2 {[%clk 0:02:06]} 15. Kxg2 {[%clk 0:01:57]}  Nxe5 {[%clk 0:02:04]} 16. Bxe5 {[%clk 0:01:42]}  Qd5+ {[%clk 0:02:03]} 17. Kg1 {[%clk 0:01:31]}  Rxc4 {[%clk 0:01:45]} 18. Qd2 {[%clk 0:01:06]}  Bb4 {[%clk 0:01:38]} 19. Qg5 {[%clk 0:00:57]}  Bxe1 {[%clk 0:01:32]} 20. Nf5 {[%clk 0:00:45]}  Bxf2+ {[%clk 0:01:14]} 21. Kxf2 {[%clk 0:00:37]}  Ne4+ {[%clk 0:01:14]} 22. Ke3 {[%clk 0:00:21]}  Qd2+ {[%clk 0:01:05]} 0-1


[Site "https://www.chess.com"]

[Event "Titled Tuesday Blitz April 11 Late 2023"]
[White "Martin Barcelo, Carles"]
[Black "Mamedov, Edgar"]
[WhiteFideId "24561444"]
[BlackFideId "13739980"]
[WhiteElo "2089"]
[BlackElo "2330"]
[Result "1-0"]
[Round "07"]
[TimeControl "180+2"]
[Date "2023.04.11"]
[WhiteClock "0:01:36"]
[BlackClock "0:00:08"]

1. e4 {[%clk 0:02:55]}  d5 {[%clk 0:01:24]} 2. exd5 {[%clk 0:02:46]}  Qxd5 {[%clk 0:01:25]} 3. Nc3 {[%clk 0:02:46]}  Qd8 {[%clk 0:01:24]} 4. Nf3 {[%clk 0:02:45]}  Nf6 {[%clk 0:01:24]} 5. d4 {[%clk 0:02:46]}  Bg4 {[%clk 0:01:20]} 6. h3 {[%clk 0:02:46]}  Bxf3 {[%clk 0:01:18]} 7. Qxf3 {[%clk 0:02:47]}  c6 {[%clk 0:01:19]} 8. Be3 {[%clk 0:02:47]}  e6 {[%clk 0:01:19]} 9. Bd3 {[%clk 0:02:46]}  Bb4 {[%clk 0:01:17]} 10. O-O {[%clk 0:02:41]}  Bxc3 {[%clk 0:01:06]} 11. bxc3 {[%clk 0:02:42]}  O-O {[%clk 0:01:04]} 12. Rab1 {[%clk 0:02:36]}  Qe7 {[%clk 0:00:55]} 13. Qg3 {[%clk 0:02:29]}  Nd5 {[%clk 0:00:36]} 14. Bd2 {[%clk 0:02:17]}  Na6 {[%clk 0:00:18]} 15. c4 {[%clk 0:02:14]}  Ndb4 {[%clk 0:00:15]} 16. Bg5 {[%clk 0:01:45]}  f6 {[%clk 0:00:12]} 17. Bf4 {[%clk 0:01:46]}  Nxd3 {[%clk 0:00:12]} 18. Bd6 {[%clk 0:01:42]}  Qf7 {[%clk 0:00:12]} 19. Bxf8 {[%clk 0:01:36]}  Rxf8 {[%clk 0:00:08]} 20. Qxd3 {[%clk 0:01:36]} 1-0


[Site "https://www.chess.com"]

[Event "Titled Tuesday Blitz April 11 Late 2023"]
[White "Estrada Nieto, Julian"]
[Black "Djokic, Mihailo"]
[WhiteFideId "5101018"]
[BlackFideId "976440"]
[WhiteElo "2161"]
[BlackElo "2294"]
[Result "1-0"]
[Round "07"]
[TimeControl "180+2"]
[Date "2023.04.11"]
[WhiteClock "0:00:50"]
[BlackClock "0:01:24"]

1. e4 {[%clk 0:03:00]}  c5 {[%clk 0:02:59]} 2. Nf3 {[%clk 0:03:00]}  d6 {[%clk 0:02:59]} 3. Bb5+ {[%clk 0:02:58]}  Bd7 {[%clk 0:02:58]} 4. Bxd7+ {[%clk 0:02:58]}  Qxd7 {[%clk 0:02:59]} 5. O-O {[%clk 0:02:58]}  Nc6 {[%clk 0:02:36]} 6. Qe2 {[%clk 0:02:58]}  g6 {[%clk 0:02:36]} 7. c3 {[%clk 0:02:56]}  Bg7 {[%clk 0:02:36]} 8. Rd1 {[%clk 0:02:56]}  Nf6 {[%clk 0:02:36]} 9. d4 {[%clk 0:02:56]}  cxd4 {[%clk 0:02:36]} 10. cxd4 {[%clk 0:02:57]}  d5 {[%clk 0:02:37]} 11. exd5 {[%clk 0:02:33]}  Nxd5 {[%clk 0:02:17]} 12. Nc3 {[%clk 0:02:33]}  O-O {[%clk 0:02:17]} 13. Bg5 {[%clk 0:02:32]}  e6 {[%clk 0:02:14]} 14. Rac1 {[%clk 0:02:23]}  Nxc3 {[%clk 0:02:10]} 15. bxc3 {[%clk 0:02:21]}  Rac8 {[%clk 0:02:09]} 16. c4 {[%clk 0:02:20]}  Nxd4 {[%clk 0:02:07]} 17. Nxd4 {[%clk 0:02:16]}  Bxd4 {[%clk 0:02:07]} 18. Qg4 {[%clk 0:02:10]}  Rc5 {[%clk 0:01:59]} 19. Be3 {[%clk 0:01:57]}  Bxe3 {[%clk 0:01:54]} 20. Rxd7 {[%clk 0:01:56]}  Bxc1 {[%clk 0:01:54]} 21. Qd4 {[%clk 0:01:45]}  Ra5 {[%clk 0:01:46]} 22. h4 {[%clk 0:01:19]}  b6 {[%clk 0:01:41]} 23. g3 {[%clk 0:01:08]}  Bh6 {[%clk 0:01:40]} 24. Rd8 {[%clk 0:00:52]}  Rxa2 {[%clk 0:01:36]} 25. h5 {[%clk 0:00:50]}  Rd2 {[%clk 0:01:31]} 26. Rxf8+ {[%clk 0:00:50]}  Kxf8 {[%clk 0:01:32]} 27. Qh8+ {[%clk 0:00:49]}  Ke7 {[%clk 0:01:29]} 28. Qxh7 {[%clk 0:00:50]}  Bg5 {[%clk 0:01:24]} 29. hxg6 {[%clk 0:00:50]} 1-0


[Site "https://www.chess.com"]

[Event "Titled Tuesday Blitz April 11 Late 2023"]
[White "Ibadov, Dashgyn"]
[Black "Gallegos Diaz, Carlos Alberto"]
[WhiteFideId "24107514"]
[BlackFideId "3900886"]
[WhiteElo "2208"]
[BlackElo "2362"]
[Result "1-0"]
[Round "07"]
[TimeControl "180+2"]
[Date "2023.04.11"]
[WhiteClock "0:01:07"]
[BlackClock "0:01:44"]

1. d4 {[%clk 0:03:00]}  d6 {[%clk 0:02:59]} 2. e4 {[%clk 0:03:00]}  Nf6 {[%clk 0:02:59]} 3. Nc3 {[%clk 0:03:00]}  c6 {[%clk 0:02:59]} 4. Nf3 {[%clk 0:02:57]}  Qa5 {[%clk 0:02:59]} 5. Bd3 {[%clk 0:02:52]}  e5 {[%clk 0:02:59]} 6. O-O {[%clk 0:02:48]}  Be7 {[%clk 0:02:58]} 7. h3 {[%clk 0:02:43]}  O-O {[%clk 0:02:57]} 8. a3 {[%clk 0:02:39]}  Re8 {[%clk 0:02:53]} 9. b4 {[%clk 0:02:39]}  Qc7 {[%clk 0:02:52]} 10. Ne2 {[%clk 0:02:34]}  Nbd7 {[%clk 0:02:41]} 11. dxe5 {[%clk 0:02:34]}  dxe5 {[%clk 0:02:40]} 12. Ng3 {[%clk 0:02:33]}  h6 {[%clk 0:02:37]} 13. Nf5 {[%clk 0:02:09]}  Bf8 {[%clk 0:02:37]} 14. Nh2 {[%clk 0:02:01]}  a5 {[%clk 0:02:35]} 15. bxa5 {[%clk 0:01:41]}  Nc5 {[%clk 0:02:31]} 16. Ng4 {[%clk 0:01:37]}  Nfxe4 {[%clk 0:01:59]} 17. Ngxh6+ {[%clk 0:01:19]}  gxh6 {[%clk 0:01:57]} 18. Qg4+ {[%clk 0:01:12]}  Ng5 {[%clk 0:01:50]} 19. Bxg5 {[%clk 0:01:08]}  hxg5 {[%clk 0:01:46]} 20. Qxg5+ {[%clk 0:01:09]}  Kh8 {[%clk 0:01:45]} 21. Qh5+ {[%clk 0:01:08]}  Kg8 {[%clk 0:01:44]} 22. Ne7+ {[%clk 0:01:07]} 1-0


[Site "https://www.chess.com"]

[Event "Titled Tuesday Blitz April 11 Late 2023"]
[White "Almeida Junior, Alvaro Alves de"]
[Black "Hajiyev, Kanan"]
[WhiteFideId "2149974"]
[BlackFideId "13404148"]
[WhiteElo "2122"]
[BlackElo "2103"]
[Result "1-0"]
[Round "07"]
[TimeControl "180+2"]
[Date "2023.04.11"]
[WhiteClock "0:00:15"]
[BlackClock "0:00:43"]

1. e4 {[%clk 0:03:00]}  c6 {[%clk 0:02:59]} 2. d4 {[%clk 0:02:59]}  d5 {[%clk 0:03:00]} 3. exd5 {[%clk 0:02:58]}  cxd5 {[%clk 0:03:01]} 4. Bd3 {[%clk 0:02:58]}  Nc6 {[%clk 0:03:01]} 5. c3 {[%clk 0:02:58]}  Qc7 {[%clk 0:03:00]} 6. Ne2 {[%clk 0:02:56]}  Bg4 {[%clk 0:02:56]} 7. f3 {[%clk 0:02:55]}  Bh5 {[%clk 0:02:56]} 8. Bf4 {[%clk 0:02:53]}  Qd7 {[%clk 0:02:55]} 9. O-O {[%clk 0:02:49]}  e6 {[%clk 0:02:55]} 10. Nd2 {[%clk 0:02:49]}  Bd6 {[%clk 0:02:54]} 11. Bxd6 {[%clk 0:02:30]}  Qxd6 {[%clk 0:02:55]} 12. Qb3 {[%clk 0:02:31]}  Rb8 {[%clk 0:02:46]} 13. Rae1 {[%clk 0:02:25]}  Nf6 {[%clk 0:02:44]} 14. Ng3 {[%clk 0:02:17]}  Bg6 {[%clk 0:02:43]} 15. Nf5 {[%clk 0:02:09]}  Bxf5 {[%clk 0:02:36]} 16. Bxf5 {[%clk 0:02:10]}  O-O {[%clk 0:02:36]} 17. Bb1 {[%clk 0:02:07]}  b5 {[%clk 0:02:33]} 18. a3 {[%clk 0:01:54]}  Rfc8 {[%clk 0:02:31]} 19. f4 {[%clk 0:01:52]}  g6 {[%clk 0:02:11]} 20. Qd1 {[%clk 0:01:45]}  a5 {[%clk 0:02:08]} 21. Nf3 {[%clk 0:01:19]}  b4 {[%clk 0:02:07]} 22. axb4 {[%clk 0:01:19]}  axb4 {[%clk 0:02:08]} 23. Ne5 {[%clk 0:01:20]}  bxc3 {[%clk 0:02:05]} 24. bxc3 {[%clk 0:01:21]}  Na5 {[%clk 0:01:54]} 25. Rf3 {[%clk 0:00:53]}  Rb3 {[%clk 0:01:44]} 26. Qd2 {[%clk 0:00:06]}  Qa3 {[%clk 0:01:36]} 27. f5 {[%clk 0:00:05]}  exf5 {[%clk 0:01:31]} 28. Bxf5 {[%clk 0:00:05]}  Rcxc3 {[%clk 0:01:27]} 29. Bxg6 {[%clk 0:00:03]}  hxg6 {[%clk 0:01:06]} 30. Rxf6 {[%clk 0:00:03]}  Nc4 {[%clk 0:00:48]} 31. Qg5 {[%clk 0:00:03]}  Nxe5 {[%clk 0:00:46]} 32. dxe5 {[%clk 0:00:04]}  Qc5+ {[%clk 0:00:35]} 33. Kh1 {[%clk 0:00:04]}  Qf8 {[%clk 0:00:36]} 34. e6 {[%clk 0:00:04]}  Rb7 {[%clk 0:00:29]} 35. exf7+ {[%clk 0:00:04]}  Rxf7 {[%clk 0:00:29]} 36. Rxg6+ {[%clk 0:00:04]}  Rg7 {[%clk 0:00:30]} 37. Rxg7+ {[%clk 0:00:04]}  Qxg7 {[%clk 0:00:31]} 38. Re8+ {[%clk 0:00:04]}  Kh7 {[%clk 0:00:31]} 39. Qxg7+ {[%clk 0:00:05]}  Kxg7 {[%clk 0:00:31]} 40. h3 {[%clk 0:00:05]}  Kf7 {[%clk 0:00:30]} 41. Rd8 {[%clk 0:00:05]}  Ke6 {[%clk 0:00:30]} 42. Kh2 {[%clk 0:00:06]}  Re3 {[%clk 0:00:31]} 43. Re8+ {[%clk 0:00:05]}  Kf5 {[%clk 0:00:30]} 44. Rxe3 {[%clk 0:00:06]}  d4 {[%clk 0:00:31]} 45. Rd3 {[%clk 0:00:06]}  Ke4 {[%clk 0:00:32]} 46. Rxd4+ {[%clk 0:00:07]}  Kxd4 {[%clk 0:00:33]} 47. Kg3 {[%clk 0:00:08]}  Ke5 {[%clk 0:00:34]} 48. Kg4 {[%clk 0:00:08]}  Kf6 {[%clk 0:00:35]} 49. Kf4 {[%clk 0:00:09]}  Kg6 {[%clk 0:00:36]} 50. g4 {[%clk 0:00:09]}  Kh6 {[%clk 0:00:36]} 51. Kf5 {[%clk 0:00:10]}  Kg7 {[%clk 0:00:36]} 52. Kg5 {[%clk 0:00:10]}  Kh7 {[%clk 0:00:37]} 53. h4 {[%clk 0:00:11]}  Kg7 {[%clk 0:00:38]} 54. h5 {[%clk 0:00:12]}  Kh7 {[%clk 0:00:39]} 55. h6 {[%clk 0:00:12]}  Kh8 {[%clk 0:00:39]} 56. Kg6 {[%clk 0:00:13]}  Kg8 {[%clk 0:00:40]} 57. g5 {[%clk 0:00:12]}  Kh8 {[%clk 0:00:41]} 58. Kf7 {[%clk 0:00:12]}  Kh7 {[%clk 0:00:42]} 59. g6+ {[%clk 0:00:13]}  Kxh6 {[%clk 0:00:42]} 60. g7 {[%clk 0:00:14]}  Kh5 {[%clk 0:00:42]} 61. g8=Q {[%clk 0:00:14]}  Kh4 {[%clk 0:00:43]} 62. Qg2 {[%clk 0:00:14]}  Kh5 {[%clk 0:00:43]} 63. Kf6 {[%clk 0:00:15]} 1-0


[Site "https://www.chess.com"]